Cogmind - Beta 16 @@@ ROGUE MODE // 2026.01.25 @ 15:39:14 Player: Kimbo Result: Destroyed by P-60 Hacker with Shock Rifle Performance ------------- Evolutions (3) 1500 Regions Visited (7) 1400 Robots Destroyed (43) 215 Value Destroyed (1233) 1233 Prototype IDs (29) 580 Alien Tech Used (0) 0 Bonus (300) 300 TOTAL SCORE: 5228 Bonus ------- Aligned with FarCom 300 Cogmind --------- Core Integrity 0/700 Matter 168/300 Energy 99/100 System Corruption 1% Temperature Cool (18) Movement Core (50) Location -7/Factory Parts ------- > --- POWER (2) -------- (None) > --- PROPULSION (4) --- (None) > --- UTILITY (5) ------ Advanced Targeting Computer Hacking Suite > --- WEAPON (2) ------- (None) > --- INVENTORY (5) ---- Gravmag System Improved Heat Sink Transmission Jammer Heavy Ion Cannon Deploy-a-Sentry Peak State ------------ > --- POWER ------------ Improved Deuterium Engine Improved Deuterium Engine > --- PROPULSION ------- Carbon-fiber Leg VSS Leg Potential Leg Potential Leg > --- UTILITY ---------- Large Storage Unit Signal Interpreter Advanced Targeting Computer Hardened Medium Armor Plating Hacking Suite > --- WEAPON ----------- Heavy Ion Cannon Improved Grenade Launcher > --- INVENTORY -------- Light Nuclear Core Armored Wheel Armored Wheel Armored Wheel Armored Wheel Xenon Bombardment Thruster Improved Heat Sink Large Storage Unit Transmission Jammer Heavy Ion Cannon Heavy Ion Cannon Longsword +1 Deploy-a-Sentry Deploy-a-Sentry Deploy-a-Sentry [Rating: 58] Favorites ----------- Power Light Ion Engine Engine Light Ion Engine Power Core Light Nuclear Core Propulsion Armored Wheel Leg Aluminum Leg Wheel Armored Wheel Hover Unit Gravmag System Utility Large Storage Unit Device Tractor Beam Storage Large Storage Unit Processor Signal Interpreter Hackware Hacking Suite Protection Hardened Medium Armor Plating Weapon Assault Rifle Energy Gun Small Laser Energy Cannon Heavy Ion Cannon Ballistic Gun Assault Rifle Launcher Improved Grenade Launcher Slashing Weapon Longsword +1 Build | -11 -10 -9 -9 -9 -8 -8 -7 ------- Run | Yrd Mat Mat Min Exi Min Mat Fac Slots Evolved 6 | . . 2 . . . 2 2 Power 1 | . . . . . . 1 . Propulsion 2 | . . 1 . . . 1 . Utility 3 | . . 1 . . . . 2 Weapon . | . . . . . . . . Parts Attached 53 | 8 1 8 5 1 7 6 17 Power 9 | 1 . . 1 . 2 3 2 Engine 7 | 1 . . 1 . 1 2 2 Core 2 | . . . . . 1 1 . Reactor . | . . . . . . . . Propulsion 21 | 2 . 6 1 . 3 1 8 Treads . | . . . . . . . . Leg 6 | 2 . . . . . . 4 Wheel 11 | . . 6 1 . 3 1 . Hover 4 | . . . . . . . 4 Flight . | . . . . . . . . Utility 10 | 2 1 2 . . . 1 4 Device 1 | 1 . . . . . . . Storage 4 | 1 1 1 . . . . 1 Processor 2 | . . 1 . . . . 1 Hackware 2 | . . . . . . 1 1 Protection 1 | . . . . . . . 1 Artifact . | . . . . . . . . Weapon 13 | 3 . . 3 1 2 1 3 Energy Gun 2 | 1 . . 1 . . . . Energy Cannon 2 | . . . . . . . 2 Ballistic Gun 5 | 2 . . 2 . 1 . . Ballistic Cannon . | . . . . . . . . Launcher 3 | . . . . . 1 1 1 Special Weapon . | . . . . . . . . Impact Weapon . | . . . . . . . . Slashing Weapon 1 | . . . . 1 . . . Piercing Weapon . | . . . . . . . . Special Melee Weapon . | . . . . . . . . Unidentified Prototypes 1 | . . . . 1 . . . Parts Lost 18 | . . 2 3 . 6 3 4 Power 5 | . . . 1 . 2 2 . Propulsion 7 | . . . 1 . 3 . 3 Utility 1 | . . 1 . . . . . Weapon 5 | . . 1 1 . 1 1 1 Highest Loss Streak 6 | . . 1 2 . 6 2 3 To Critical Strikes . | . . . . . . . . Average Backups 9 | 3 9 8 11 11 10 8 10 Power 1 | . 1 2 1 2 2 . . Propulsion 4 | 1 5 4 4 4 5 2 3 Utility 2 | . 2 2 2 2 1 3 3 Weapon 2 | . . . 2 3 2 1 2 Tool/Special . | . . . . . . . . Unused Backups 20 | 1 . 6 . 1 2 . 10 Power 2 | . . 1 . . . . 1 Propulsion 7 | . . 5 . . . . 2 Utility 7 | 1 . . . . 1 . 5 Weapon 4 | . . . . 1 1 . 2 Tool/Special . | . . . . . . . . Average Slot Usage (%) 91 | . 100 91 84 88 77 95 92 Engine 9 | . 14 11 8 11 6 6 9 Core 2 | . . . . . 1 9 4 Leg 7 | . 28 . . . . . 19 Wheel 22 | . . 31 32 33 31 36 2 Hover 1 | . . . . . . . 6 Device 2 | . 14 4 . . . . . Storage 10 | . 14 11 11 11 11 9 6 Processor 8 | . . 10 11 11 11 9 9 Hackware 3 | . . . . . . 7 11 Protection 1 | . . . . . . . 5 Energy Cannon 2 | . . . . . . . 10 Ballistic Gun 12 | . 28 22 19 18 5 . . Launcher 1 | . . . . . . 8 2 Slashing Weapon 2 | . . . . 3 11 9 . Peak Build Rating 58 | 7 8 12 13 24 26 36 58 Average Rating 23 | 4 7 9 12 16 23 33 49 On Entrance 14 | . 7 8 11 13 24 25 31 Avg Prop Armor Cover (%) . | . . . . . . . . Naked Turns . | . . . . . . . . Heaviest Build 64 | 13 28 28 30 31 32 39 64 Greatest Support 87 | 20 20 36 36 36 36 48 87 Greatest Overweight (x) 6 | 1 1 2 1 . 1 . 6 Average Overweight (x) . | . . . . . . . . Largest Inventory Capacity 15 | 8 15 15 15 15 15 15 15 Average Capacity 14 | 6 14 15 15 15 15 15 14 Most Carried 15 | 6 13 12 13 15 15 14 15 Average Carried 11 | 3 9 8 11 12 13 11 13 Final Capacity 15 | 8 15 15 15 15 15 15 5 Final Carried 15 | 6 13 11 12 15 9 13 5 Class Distribution -------------------- 89% | Mutant 10% | Hacker-Mutant Dominant Class ---------------- Mutant | -10/Materials Mutant | -9/Materials Mutant | -9/Mines Mutant | -9/Exiles Mutant | -8/Mines Mutant | -8/Materials Hacker-Mutant | -7/Factory Resources | -11 -10 -9 -9 -9 -8 -8 -7 ----------- Run | Yrd Mat Mat Min Exi Min Mat Fac Matter Collected 1191 | 287 78 193 202 . 74 157 200 Remotely 272 | 108 78 86 . . . . . Salvage Created 1367 | 66 142 389 188 . 77 232 273 Parts 93 | 2 13 19 17 . 2 29 11 Haulers Intercepted . | . . . . . . . . Recyclers Shooed 3 | . 1 1 . . . 1 . Parts Field Recycled . | . . . . . . . . Retrieved Matter . | . . . . . . . . Parts Self-Destructed . | . . . . . . . . Prevented . | . . . . . . . . Parts Restored . | . . . . . . . . Kills | -11 -10 -9 -9 -9 -8 -8 -7 ------- Run | Yrd Mat Mat Min Exi Min Mat Fac Combat Hostiles Destroyed 27 | . . 5 7 . 2 9 4 Melee 3 | . . . . . 2 1 . Guns 12 | . . 5 7 . . . . Cannons 3 | . . . . . . . 3 AOE 9 | . . . . . . 8 1 Classes Destroyed 9 | 1 1 2 1 . . 3 1 Worker 5 | . 3 . . . . 2 . Recycler 5 | 1 1 2 . . . . 1 Operator 4 | . . . . . . 3 1 Watcher 2 | . . . . . . 2 . Swarmer 8 | . . . 4 . . 4 . Grunt 13 | . . 4 3 . 2 3 1 Sentry 4 | . . 1 . . . 1 2 Hunter 1 | . . . . . . 1 . Programmer 1 | . . . . . . . 1 Best Kill Streak 5 | 1 4 5 4 . 2 4 2 Combat Bots Only 4 | . . 3 4 . 2 4 1 Max Kills in Single Turn 4 | 1 1 1 1 . 1 4 1 Gunslinging . | . . . . . . . . Exploded 4 | . . . . . . 4 1 Melee 1 | . . . . . 1 1 . Uniques/NPCs Destroyed . | . . . . . . . . Combat | -11 -10 -9 -9 -9 -8 -8 -7 -------- Run | Yrd Mat Mat Min Exi Min Mat Fac Hostile Shots Fired 349 | . . 55 44 . 43 25 182 Missed 109 | . . 16 8 . 12 6 67 Hits 240 | . . 39 36 . 31 19 115 Projectile 240 | . . 39 36 . 31 19 115 Critical Strikes 3 | . . 1 . . 1 . 1 Damage Taken 3372 | . 9 401 357 . 547 429 1629 Core 1087 | . . 65 50 . 145 114 713 Absorbed by Shields . | . . . . . . . . Core Remaining (%) 78 | 100 100 . . . 35 79 . Volleys Fired 115 | 3 13 27 20 . 1 17 34 Largest 2 | 2 2 2 2 . 1 1 2 Hottest 130 | 60 40 40 60 . 25 36 130 Shots Fired 193 | 6 26 54 39 . 1 17 50 Gun 126 | 6 26 54 39 . 1 . . Cannon 46 | . . . . . . . 46 Launcher 21 | . . . . . . 17 4 Special . | . . . . . . . . Kinetic 116 | 3 26 54 32 . 1 . . Thermal 53 | . . . 7 . . . 46 Explosive 21 | . . . . . . 17 4 Electromagnetic 3 | 3 . . . . . . . Robot Hit Streak 9 | 2 5 9 5 . . 9 9 Robot Miss Streak 7 | 1 3 6 7 . 2 . 5 Penetration Max . | . . . . . . . . Secondary Targets . | . . . . . . . . Shots Hit Robots 120 | 4 15 32 18 . 8 15 28 Core Hits 74 | 1 5 15 12 . 3 24 14 Critical Kills . | . . . . . . . . Critical Parts Destroyed . | . . . . . . . . Critical Strikes 2 | . . . . . 1 1 . Sever 2 | . . . . . 1 1 . Melee Attacks 14 | . . . . . 8 6 . Impact . | . . . . . . . . Slashing 14 | . . . . . 8 6 . Piercing . | . . . . . . . . Sneak Attacks 1 | . . . . . . 1 . Combat Hostiles . | . . . . . . . . Follow-up Attacks . | . . . . . . . . Damage Inflicted 3924 | 63 204 447 236 . 393 1459 1122 Guns 955 | 41 204 447 236 . 27 . . Cannons 778 | . . . . . . . 778 Explosions 1489 | 22 . . . . . 1131 336 Melee 694 | . . . . . 366 328 . Ramming 8 | . . . . . . . 8 Kinetic 879 | . 204 447 201 . 27 . . Thermal 1071 | 22 . . 35 . . . 1014 Explosive 1231 | . . . . . . 1131 100 Electromagnetic 41 | 41 . . . . . . . Impact . | . . . . . . . . Slashing 694 | . . . . . 366 328 . Piercing . | . . . . . . . . Highest Corruption . | . . . . . . . . Average Corruption . | . . . . . . . . Corruption Purged . | . . . . . . . . Corruption Blocked . | . . . . . . . . Overload Shots . | . . . . . . . . Overflow Damage 115 | . . . . . . 48 67 Projectiles 37 | . . . . . . . 37 Explosions 75 | . . . . . . 45 30 Melee 3 | . . . . . . 3 . Knockbacks . | . . . . . . . . Impact . | . . . . . . . . Kinetic . | . . . . . . . . Secondary . | . . . . . . . . Self-Inflicted Damage 283 | . . . . . . 134 149 Shots 8 | . . . . . . 5 3 Rammed 1 | . . . . . . . 1 Targets Rammed 1 | . . . . . . . 1 Kicked . | . . . . . . . . Crushed . | . . . . . . . . Highest Temperature 493 | . . 17 6 . 16 21 493 Average Temperature 173 | . . 12 2 . 9 10 189 Received Heat Transfer 1416 | . 6 183 105 . 297 99 726 Effects 13 | . . . . . . . 13 Shutdowns 4 | . . . . . . . 4 Energy Bleed 2 | . . . . . . . 2 Interference 6 | . . . . . . . 6 Short Circuit 1 | . . . . . . . 1 Siege Activations . | . . . . . . . . Martial Activations . | . . . . . . . . Shielding Activations . | . . . . . . . . Robots Disrupted . | . . . . . . . . Combat Hostiles . | . . . . . . . . Robots Corrupted . | . . . . . . . . Combat Hostiles . | . . . . . . . . Parts Fried . | . . . . . . . . Impact Corruptions . | . . . . . . . . Robots Melted . | . . . . . . . . Combat Hostiles . | . . . . . . . . Parts Melted 1 | . . . . . . . 1 Heat Transferred 1298 | 50 . . 75 . . . 1173 Parts Sabotaged . | . . . . . . . . Parts Stolen . | . . . . . . . . Parts Stripped . | . . . . . . . . Power Chain Reactions 1 | 1 . . . . . . . Alert | -11 -10 -9 -9 -9 -8 -8 -7 ------- Run | Yrd Mat Mat Min Exi Min Mat Fac Maximum Alert Level 1 | . . . . . . 1 . Low Security (%) 99 | 100 100 100 100 . 100 96 100 Level 1 . | . . . . . . 3 . Level 2 . | . . . . . . . . Level 3 . | . . . . . . . . Level 4 . | . . . . . . . . Level 5 . | . . . . . . . . High Security . | . . . . . . . . Max Security . | . . . . . . . . Peak Influence 207 | 5 15 45 70 . 40 207 146 Initial 86 | . . . . . . 5 86 Average 41 | . . 19 20 . 3 60 88 Influence Increases 1194 | 5 24 149 160 . 55 457 344 Destroy 0b10 Robot/C 540 | . . 100 140 . 40 180 80 Destroy 0b10 Robot/NC 80 | 5 20 10 . . . 35 10 Destroy Leader 114 | . . 20 20 . . 44 30 Successful Hack 37 | . 4 4 . . . 3 26 Disable Machine 225 | . . . . . . 90 135 Destroy Structure 153 | . . . . . . 105 48 Lose Combat Pursuer 45 | . . 15 . . 15 . 15 Influence Decreases 1106 | 5 24 149 160 . 40 281 447 Entered New Map 115 | . . . . . . 10 105 Time Decay 851 | 5 24 139 130 . 10 241 302 Lost Part 140 | . . 10 30 . 30 30 40 Squads Dispatched 10 | . 1 2 . . . 3 4 Investigation 3 | . . 1 . . . 2 . Extermination 2 | . . . . . . . 2 Reinforcement 5 | . 1 1 . . . 1 2 Assault . | . . . . . . . . Garrison . | . . . . . . . . Intercept . | . . . . . . . . Searches Triggered . | . . . . . . . . Construction Impeded 1 | . . . . . . . 1 Haulers Reinforced . | . . . . . . . . Active Scanning Responses . | . . . . . . . . Cargo Convoy Interrupts . | . . . . . . . . Stealth | -11 -10 -9 -9 -9 -8 -8 -7 --------- Run | Yrd Mat Mat Min Exi Min Mat Fac Distress Signals 3 | . 1 2 . . . . . Communications Jammed . | . . . . . . . . Distress Signals . | . . . . . . . . Times Spotted 69 | . 2 21 7 . 6 14 19 Peak Tracking Total 14 | . 1 14 4 . 4 4 11 Tactical Retreats 3 | . . 1 . . 1 . 1 Traps | -11 -10 -9 -9 -9 -8 -8 -7 ------- Run | Yrd Mat Mat Min Exi Min Mat Fac Traps Triggered 1 | . . . . . . 1 . Indirectly . | . . . . . . . . Trap Hack Attempts . | . . . . . . . . Triggered . | . . . . . . . . Disarmed . | . . . . . . . . Reprogrammed . | . . . . . . . . Reused . | . . . . . . . . Traps Extracted . | . . . . . . . . Installed . | . . . . . . . . Triggered . | . . . . . . . . Machines | -11 -10 -9 -9 -9 -8 -8 -7 ---------- Run | Yrd Mat Mat Min Exi Min Mat Fac Machines Disabled 15 | . . . . . . 6 9 Max in Single Turn 3 | . . . . . . 2 3 Machines Repaired . | . . . . . . . . Machines Dismantled . | . . . . . . . . Machines Sabotaged . | . . . . . . . . Overloaded Fab Kills . | . . . . . . . . Hacking | -11 -10 -9 -9 -9 -8 -8 -7 --------- Run | Yrd Mat Mat Min Exi Min Mat Fac Machines Accessed 20 | . 4 1 . 5 . 7 3 Terminals 12 | . 4 1 . . . 4 3 Fabricators . | . . . . . . . . Repair Stations . | . . . . . . . . Recycling Units 2 | . . . . . . 2 . Scanalyzers 1 | . . . . . . 1 . Garrison Access . | . . . . . . . . Total Hacks 81 | . 12 2 . 45 . 17 5 Successful 70 | . 7 1 . 45 . 13 4 Failed 10 | . 5 1 . . . 3 1 Catastrophic 1 | . . 1 . . . . . Database Lockouts 1 | . . . . . . 1 . Manual 1 | . . . . 1 . . . Terminals 27 | . 12 2 . . . 8 5 Fabricators . | . . . . . . . . Repair Stations . | . . . . . . . . Recycling Units 6 | . . . . . . 6 . Scanalyzers 3 | . . . . . . 3 . Garrison Access . | . . . . . . . . Terminal Hacks 64 | . 7 1 . 45 . 7 4 Record 51 | . 4 . . 44 . 2 1 Prototype ID Bank 2 | . 1 . . . . . 1 Emergency Access Points 1 | . . . . . . 1 . Alert Level 4 | . 1 . . . . 3 . Locate Traps 1 | . . . . . . . 1 Dispatch Records 2 | . 1 1 . . . . . Maintenance Status 1 | . . . . . . 1 . Zone Layout 1 | . . . . . . . 1 Proto ID Catalog 1 | . . . . 1 . . . Fabricator Hacks . | . . . . . . . . Repair Station Hacks . | . . . . . . . . Recycling Unit Hacks 4 | . . . . . . 4 . Process 2 | . . . . . . 2 . Report Inventory 1 | . . . . . . 1 . Retrieve Components 1 | . . . . . . 1 . Scanalyzer 2 | . . . . . . 2 . Retrieve Study 2 | . . . . . . 2 . Garrison Access Hacks . | . . . . . . . . Unauthorized Hacks . | . . . . . . . . Terminals . | . . . . . . . . Fabricators . | . . . . . . . . Repair Stations . | . . . . . . . . Recycling Units . | . . . . . . . . Scanalyzers . | . . . . . . . . Garrison Access . | . . . . . . . . Data Cores Recovered 2 | . 1 . . . . 1 . Used . | . . . . . . . . Hacking Detections 12 | . 3 1 . . . 5 3 Full Trace Events 3 | . . 1 . . . 2 . Feedback Events . | . . . . . . . . Feedback Blocked . | . . . . . . . . Robot Schematics Acquired . | . . . . . . . . Robots Built . | . . . . . . . . Authchips . | . . . . . . . . Time . | . . . . . . . . Total Robot Build Rating . | . . . . . . . . Part Schematics Acquired . | . . . . . . . . Parts Built . | . . . . . . . . Authchips . | . . . . . . . . Time . | . . . . . . . . Total Part Build Rating . | . . . . . . . . Part Studies Acquired 2 | . . . . . . 2 . Parts Repaired . | . . . . . . . . Time . | . . . . . . . . Parts Recycled . | . . . . . . . . Recycled Matter 88 | . . . . . . 88 . Retrieved Matter . | . . . . . . . . Retrieved Components . | . . . . . . . . Parts Scanalyzed . | . . . . . . . . Part Schematics Acquired . | . . . . . . . . Parts Damaged . | . . . . . . . . Bothacking | -11 -10 -9 -9 -9 -8 -8 -7 ------------ Run | Yrd Mat Mat Min Exi Min Mat Fac Used RIF Installer . | . . . . . . . . Robots Hacked . | . . . . . . . . Non-combat . | . . . . . . . . Combat . | . . . . . . . . Robot Hacks Applied . | . . . . . . . . Relay Couplers Released . | . . . . . . . . Fabnet Peak Effective % . | . . . . . . . . Robots Rewired . | . . . . . . . . Allies Hacked . | . . . . . . . . Hacks Repelled . | . . . . . . . . Allies | -11 -10 -9 -9 -9 -8 -8 -7 -------- Run | Yrd Mat Mat Min Exi Min Mat Fac Total Allies . | . . . . . . . . Largest Group . | . . . . . . . . Highest-Rated Group . | . . . . . . . . Highest-Rated Ally . | . . . . . . . . Total Orders . | . . . . . . . . Ally Attacks . | . . . . . . . . Total Damage . | . . . . . . . . Kills . | . . . . . . . . Allies Corrupted . | . . . . . . . . Allies Melted . | . . . . . . . . Intel | -11 -10 -9 -9 -9 -8 -8 -7 ------- Run | Yrd Mat Mat Min Exi Min Mat Fac Active Infowar (turns) . | . . . . . . . . Robot Analysis Total . | . . . . . . . . Derelict Logs Recovered 2 | . . . 2 . . . . Drone Launches . | . . . . . . . . Drone Recoveries . | . . . . . . . . Exploration | -11 -10 -9 -9 -9 -8 -8 -7 ------------- Run | Yrd Mat Mat Min Exi Min Mat Fac Turns Passed 3284 | 89 446 358 415 636 114 563 663 Spaces Moved 2763 | 53 222 289 373 686 90 478 572 Core 58 | 17 . . . . . . 41 Treads . | . . . . . . . . Legs 650 | 36 222 . . . . . 392 Wheels 1957 | . . 289 373 686 90 478 41 Hover 98 | . . . . . . . 98 Flight . | . . . . . . . . Fastest Speed 50 | 50 120 80 90 90 90 90 50 Average Speed 97 | 109 178 84 90 90 90 90 91 Slowest Speed 420 | 190 190 120 105 90 105 90 420 Overloaded Moves . | . . . . . . . . Propulsion Burnouts . | . . . . . . . . Robots Hopped . | . . . . . . . . Potential Cave-ins . | . . . . . . . . Cave-ins Triggered . | . . . . . . . . Exploration Rate (%) 40 | 3 45 25 70 94 32 42 13 Regions Visited 7 Branch Regions 3 Pre-discovered Areas 3 | . . . 2 1 . . . Known Exits Taken 5 | . . 1 1 1 1 1 . Unknown Exits Taken 2 | 1 1 . . . . . . Scrap Searched 2 | . . . 1 . 1 . . Spaces Dug . | . . . . . . . . Terrain Destroyed 178 | 4 . . . . . 119 55 Melee . | . . . . . . . . Projectile 4 | . . . . . . . 4 AOE 174 | 4 . . . . . 119 51 Terrain Rammed . | . . . . . . . . Walls Destroyed . | . . . . . . . . Machines Disabled . | . . . . . . . . Actions | -11 -10 -9 -9 -9 -8 -8 -7 --------- Run | Yrd Mat Mat Min Exi Min Mat Fac Total 3169 | 79 246 354 411 705 114 587 673 Wait 96 | . . 6 5 9 5 69 2 Move 2756 | 52 221 288 372 685 89 477 572 Hop . | . . . . . . . . Pick Up 73 | 14 9 11 5 6 2 10 16 Fast Attach 7 | . . 2 . . . . 5 Attach 34 | 8 . 5 4 1 6 5 5 Detach 6 | 1 . 1 . . . . 4 Swap 16 | . 1 1 3 . 1 2 8 Drop 48 | 1 2 13 . 3 2 1 26 Fire 115 | 3 13 27 20 . 1 17 34 Melee 14 | . . . . . 8 6 . Ram 1 | . . . . . . . 1 Kick . | . . . . . . . . Crush . | . . . . . . . . Escape Stasis . | . . . . . . . . Rewire 3 | . . . 2 1 . . . Trap . | . . . . . . . . Miscellaneous . | . . . . . . . . Route ------- -11/Scrapyard -10/Materials (discovered 2 exits: *Mat / [*Min]) -9/Materials -9/Mines (discovered 4 exits: *Mat x2 / *Exi / [*Zio]) -9/Exiles (discovered 2 exits: *Min x2) -8/Mines -8/Materials -7/Factory (discovered 1 exit: *Low) History --------- Turn | Location | Event 8 | -11/Scrapyard | Discovered new exit (range 16) 90 | -11/Scrapyard | Entered Materials 91 | -10/Materials | Met a group of wandering Federalists 302 | -10/Materials | Build established: Mutant 345 | -10/Materials | Discovered new exit (range 7) 503 | -10/Materials | Discovered new exit (range 11) 536 | -10/Materials | Entered another Materials area 536 | -9/Materials | Evolved 2 slots: Propulsion x1, Utility x1 834 | -9/Materials | Discovered new exit (range 15) 893 | -9/Materials | Identified exit to Mines 894 | -9/Materials | Entered Mines 895 | -9/Mines | A Derelict revealed a hidden shortcut to a safe place 979 | -9/Mines | Learned location of Zion (-7) 1108 | -9/Mines | Discovered new exit (range 9) 1159 | -9/Mines | Discovered new exit (range 16) 1281 | -9/Mines | Received a Rocket Launcher from a helpful Derelict 1306 | -9/Mines | Deemed a non-threat by the Exiles lab entrance 1306 | -9/Mines | Discovered new exit (range 5) 1308 | -9/Mines | Identified exit to Exiles 1309 | -9/Mines | Entered Exiles 1324 | -9/Exiles | Discovered new exit (range 14) 1348 | -9/Exiles | Met 8R-AWN 1366 | -9/Exiles | Met EX-HEX 1419 | -9/Exiles | Met EX-DEC 1464 | -9/Exiles | Visited The Gauntlet 1631 | -9/Exiles | Discovered new exit (range 10) 1690 | -9/Exiles | Met EX-BIN 1704 | -9/Exiles | Aligned with FarCom system 1705 | -9/Exiles | Given EX-Vault access code 1743 | -9/Exiles | Opened EX-Vault 1748 | -9/Exiles | Found Deploy-a-Sentry 1749 | -9/Exiles | Found Deploy-a-Sentry 1751 | -9/Exiles | Found Deploy-a-Sentry 1757 | -9/Exiles | Found Prototype Slashing Weapon 1758 | -9/Exiles | Identified Longsword +1 1762 | -9/Exiles | Found Prototype Leg 1764 | -9/Exiles | Found Prototype Leg 1791 | -9/Exiles | Identified Potential Leg (x2) 1810 | -9/Exiles | Warned to stay clear of 0b10 Research branches 1944 | -9/Exiles | Identified exit to Mines 1945 | -9/Exiles | Stole three prototypes: Longsword +1, Deploy-a-Sentry, Potential Leg 1945 | -9/Exiles | Entered Mines 2011 | -8/Mines | Core integrity fell below 50% 2040 | -8/Mines | Discovered new exit (range 14) 2051 | -8/Mines | Lost 6 parts (2p3n1w) 2051 | -8/Mines | Identified exit to Materials 2059 | -8/Mines | Entered Materials 2059 | -8/Materials | Evolved 2 slots: Power x1, Propulsion x1 2483 | -8/Materials | Central database locked down 2550 | -8/Materials | Discovered new exit (range 16) 2574 | -8/Materials | Identified exit to Factory 2622 | -8/Materials | Entered Factory 2622 | -7/Factory | Evolved 2 slots: Utility x2 2624 | -7/Factory | FarCom data flow suspended 2722 | -7/Factory | Discovered new exit (range 9) 2745 | -7/Factory | Identified exit to Lower Caves 3011 | -7/Factory | Build established: Hacker-Mutant 3274 | -7/Factory | Core integrity fell below 50% 3283 | -7/Factory | Core integrity fell below 20% 3285 | -7/Factory | Destroyed by P-60 Hacker with Shock Rifle Last Messages --------------- 03199_ U-05 Engineer lays Concrete. 03204_ Dropped Longsword +1. 03204_ Dropped Potential Leg. 03206_ Acquired Gravmag System. 03208_ Acquired Deploy-a-Sentry. 03229_ R-06 Scavenger collects Longsword +1. 03238_ Critical hit (Burn: +37). 03241_ ALERT: Potential suspicious activity detected, Programmers report to Factory Zone 1U. 03246_ Subcomponent Replicator disabled. 03246_ Gravmag System destroyed. 03260_ Dropped Hrd. Medium Armor Plating. 03260_ Gravmag System destroyed. 03260_ Dropped Imp. Deuterium Engine. 03261_ Dropped Broken Imp. Deuterium Engine. 03261_ Dropped Gravmag System. 03262_ Dropped Sml. Storage Unit. 03262_ Discarded Signal Interpreter. 03263_ Dropped Hvy. Ion Cannon. Map ----- +----------------------------------------------------+ | ?????????????????????????????????????????????????? | | ?????????????????????????????????????????????????? | | ?????????????????????????????????????????????????? | | ?????????????????????????????????????????????????? | | ?????????????????????????????????????????????????? | | ?????????????????????????????????????????????????? | | ?????????????????????????????????????????????????? | | ?????????????????????????????????????????????????? | | ?????????????????????????????????????????????????? | | ?????????????????????????????????????????????????? | | ?????????????????????????????????????????????????? | | ?????????????????????????????????????????????????? | | ?????????????????????????????????????????????????? | | ?????????????????????????????????????????????????? | | ?????????????????????????????????????????????????? | | ????????????????###??????????????????????????????? | | ????????????????# !?????????????????????????????? | | ????????????????# !?????????????????????????????? | | ????????????????# ????????????????????????????? | | ????????????????# ???????????????????????????? | | ????????????????# !???????????????????????????? | | ????????????????# ##############????????????? | | ????????????????+ # !!*!*=] #????????????? | | ????????????????# """ /g g]&"""& #????????????? | | ????????????????# """ # g""""" #????????????? | | ????????????????? "???# @ """gg #?? ?????????? | | ???????????????????????# gpgYg #?? #??????? | | ???????????????????????# """"" #?? #??????? | | ???????????????????????# """"" #? #??????? | | ???????????????????????# """ #? #??????? | | ???????????????????????# #? #? """"" | | ???????????????????????# # #? """"" | | ???????????????????????# # #? | | ???????????????????????# # #? | | ??????????????????????###########+### #####/## | | ??????????????????????# | | ??????????????????????# | | ??????????????????????# | | ??????????????????????# """ | | ??????????????????????# """ | | ??????????????????????# """ ################ | | ??????????????????????# #?????????###### | | ??????????????????????# """ #????????? | | ??????????????????????+ "F" #?????????" | | ??????????????????????# " #?????????" | | ??????????????????????# """ #?????????" | | ??????????????????????+ """ #?????????" | | ??????????????????????### #????????? | | ????????????????????????# ################ | | ????#?????????????????### ^= ^ ^ || ^ | +----------------------------------------------------+ Best States ------------- Heat Dissipation 34 Energy Generation 27 Energy Capacity 480 Matter Stores 300 Matter Capacity 300 Sight Range 16 Terrain Scan Density 10 Armor Coverage 225 Evasion (%) 57 Targeting Accuracy 8 Offensive Hacking 20 Item Schematics ----------------- None Robot Schematics ------------------ None Fabricated ------------ Nothing Repaired ---------- Nothing Studied --------- VSS Leg | -8/Materials | Hacked Carbon-fiber Leg | -8/Materials | Hacked Alien Tech Used ----------------- None Achievements -------------- Ghost 'Em Morally Flexible Resistances Are Futile Sixth Sense Tourist Challenges ------------ None Game ------ Seed ClaymoresForceMinigun Manual? 0 Play Time 01:15:28 Cumulative 4.3 hours Start 2026.01.25 @ 12:04:38 End 2026.01.25 @ 15:39:14 Sessions 1 Manual Loads 0 Difficulty Rogue Special Mode None Game No. 7 Rogue 6 Adventurer 1 Explorer 0 Win Type - Total 0 Types 0/0/0/0/0/0/0/0/0/0 Lore% 6 Gallery% 7 Achievement% 7 Wizard Run 0 Options --------- Layout 1 ASCII 0 Keyboard 0 Movement Numpad Keybinds 0 Fullscreen 1 Font 32/SmallcapsGlow Map View 50x35 Zoom Use 0% Tactical HUD 1 Map Filters NONE Filters NONE Steam 1 RUN: 19df6e9f-517f-4863-9b9d-4fec8f020b97